bitfinex/quotes_ETHUSD_20251018
["timestamp","ask_amount","ask_price","bid_price","bid_amount"]
[1760820528994,0.128,3900.6,3900.3,0.2241]
[1760820528995,2.3616,3900.1,3897.7,0.6784]
[1760820529278,4.70361933,3898.0,3897.7,0.68]
[1760820530082,3.23802157,3898.1,3897.7,0.68]
[1760820530980,2.56553562,3897.9,3897.7,0.0016]
[1760820531166,2.56553562,3897.9,3897.2,0.4543]
[1760820531681,0.67266264,3897.9,3897.2,0.4543]
[1760820531985,4.70361933,3898.0,3897.2,0.4543]
[1760820532288,0.04471408,3897.8,3897.2,0.4543]
[1760820533477,0.04471408,3897.8,3897.3,2.56587894]
[1760820533645,0.04471408,3897.8,3897.4,0.4543]
[1760820534046,0.04471408,3897.8,3897.5,0.4543]
[1760820535152,0.04471408,3897.8,3897.6,0.4543]
[1760820535778,0.04471408,3897.8,3897.7,0.4543]
[1760820536862,0.04471408,3897.8,3897.3,0.02565878]
[1760820537182,0.04471408,3897.8,3897.4,0.4543]
[1760820537384,0.04471408,3897.8,3897.5,0.4543]
[1760820537552,0.6336,3898.3,3897.5,0.4543]
[1760820537883,0.6336,3898.1,3897.5,0.4543]
[1760820538480,0.77636264,3898.0,3897.1,0.4543]
[1760820538685,0.1875,3897.9,3897.1,0.4543]
[1760820538887,0.128,3897.7,3897.2,2.56588614]
[1760820539275,0.128,3897.7,3897.3,3.02016805]
[1760820539477,0.128,3897.7,3897.3,0.4543]
[1760820539784,0.128,3897.7,3897.3,2.56587615]
[1760820539992,0.128,3897.7,3897.4,0.4543]
[1760820540670,0.17271431,3897.7,3897.5,3.02002089]
[1760820541053,0.04471431,3897.7,3897.6,2.56568144]
[1760820541258,0.04471431,3897.7,3897.6,3.01998144]
[1760820542154,0.04471431,3897.7,3897.6,6.88998143]
[1760820542500,0.04471431,3897.7,3897.6,7.01798143]
[1760820542699,0.04471431,3897.7,3897.6,3.99799999]
[1760820542869,0.04471431,3897.7,3897.6,7.01798143]
[1760820543260,0.04471431,3897.7,3897.6,7.50127111]
[1760820548499,0.04471431,3897.7,3897.6,9.22927111]
[1760820548797,0.04471431,3897.7,3897.6,9.10127111]
[1760820549803,0.04471431,3897.7,3897.1,0.002]
[1760820549804,4.92754478,3897.2,3897.1,0.002]
[1760820549964,7.06521933,3897.2,3897.1,0.002]
[1760820550166,2.4615,3897.2,3897.1,0.002]
[1760820551297,0.0999,3897.6,3897.1,0.002]
[1760820551604,0.40250311,3897.2,3897.1,0.002]
[1760820551765,0.1885,3897.8,3897.1,2.56801062]
[1760820551961,0.1885,3897.8,3897.1,3.22501062]
[1760820552169,0.59097183,3897.8,3897.1,3.22501062]
[1760820553190,0.04471923,3897.7,3897.1,3.22501062]
[1760820553601,0.04471923,3897.7,3897.2,2.56593321]
[1760820553784,0.04471923,3897.7,3897.3,2.56586552]
[1760820553981,0.04471923,3897.7,3897.2,2.56594094]
[1760820554701,0.04471923,3897.7,3897.3,0.4305]
[1760820555307,0.04471923,3897.7,3897.3,2.56587602]
[1760820555607,0.04471923,3897.7,3897.3,2.99637602]
[1760820555903,0.04471923,3897.7,3897.4,0.4305]
[1760820558104,0.04471923,3897.7,3897.5,0.4305]
[1760820558292,0.04471923,3897.7,3897.6,2.56568144]
[1760820558496,0.04471923,3897.7,3897.6,0.4305]
[1760820560233,0.04471923,3897.7,3897.2,0.5585]
[1760820560378,0.04471923,3897.7,3897.3,0.4305]
[1760820560891,0.04471923,3897.7,3897.2,0.128]
[1760820561092,0.04471923,3897.7,3897.6,0.002]
[1760820562686,0.14461923,3897.7,3897.6,0.002]
[1760820563230,0.04471923,3897.7,3897.6,0.002]
[1760820563519,0.14461923,3897.7,3897.6,0.002]
[1760820565389,0.04471923,3897.7,3897.6,0.002]
[1760820573134,0.04471923,3897.7,3897.6,2.99818144]
[1760820574258,0.04471923,3897.7,3897.6,6.86818143]
[1760820574460,0.128,3898.4,3898.2,2.56523388]
[1760820574819,0.128,3898.4,3898.2,3.00723388]
[1760820576048,0.17271085,3898.4,3898.2,3.00723388]
[1760820576427,0.17271085,3898.4,3898.3,3.00722073]
[1760820576428,0.04471085,3898.4,3898.3,3.00722073]
[1760820577262,0.128,3898.7,3898.5,2.5650641]
[1760820577763,0.128,3898.7,3898.5,3.0070641]
[1760820579062,0.129,3898.7,3898.5,3.0070641]
[1760820579367,0.129,3898.7,3898.2,2.56528275]
[1760820579368,0.296,3898.6,3898.0,2.56540732]
[1760820579672,0.128,3898.4,3898.0,2.56540732]
[1760820579977,0.128,3898.4,3898.1,2.56534255]
[1760820580333,0.17270751,3898.4,3898.2,0.442]
[1760820580564,0.17270751,3898.4,3898.3,2.56522073]
[1760820580870,0.17270751,3898.4,3898.2,2.56527429]
[1760820581170,0.17270751,3898.4,3898.1,3.00733155]
[1760820581333,0.17270751,3898.4,3898.2,3.00728223]
[1760820581666,0.17270751,3898.4,3898.3,2.56522073]
[1760820582557,0.17270751,3898.4,3898.3,3.00722073]
[1760820582753,0.17270751,3898.4,3898.0,0.442]
[1760820582959,0.17270751,3898.4,3898.1,2.56534716]
[1760820583837,0.128,3898.4,3898.2,2.56527901]
[1760820584543,0.128,3898.4,3898.3,2.56522073]
[1760820585182,0.128,3898.4,3898.2,2.5652634]
[1760820585684,0.128,3898.4,3898.3,2.56522073]
[1760820586752,0.128,3898.4,3898.2,2.56527879]
[1760820587064,0.17270627,3898.4,3898.2,2.56527879]
[1760820587246,0.128,3898.4,3898.2,2.56527879]
[1760820587789,0.128,3898.4,3898.1,3.00734724]
[1760820588156,0.128,3898.4,3898.2,2.5652837]
[1760820589887,0.128,3898.4,3898.2,3.0072837]
[1760820590082,0.001,3898.7,3898.1,2.56534558]
[1760820590299,0.001,3898.7,3898.2,2.56528654]
[1760820590796,0.001,3898.7,3898.3,2.5652075]
[1760820591293,0.001,3898.7,3898.1,0.128]
[1760820591494,0.001,3898.7,3898.2,2.56527054]
[1760820591787,0.001,3898.7,3898.3,2.56521235]
[1760820592623,0.001,3898.7,3898.3,2.5651759]
[1760820594483,0.04570631,3898.7,3898.3,2.5651759]
[1760820596034,0.04570631,3898.7,3898.5,2.5650372]
[1760820596584,0.04570631,3898.7,3898.6,0.442]
[1760820597520,0.001,3898.7,3898.6,0.442]
[1760820597915,0.04570591,3898.7,3898.6,0.442]
[1760820598235,0.001,3898.7,3898.6,3.00702334]
[1760820599535,0.001,3898.7,3898.6,0.442]
[1760820601444,0.001,3898.7,3898.2,3.86999999]
[1760820601600,0.6336,3898.5,3898.2,3.86999999]
[1760820601799,0.099,3898.4,3898.2,3.86999999]
[1760820602106,0.38950157,3898.7,3898.2,3.86999999]
[1760820602107,5.43621933,3898.6,3898.2,3.86999999]
[1760820602307,0.04471058,3898.4,3898.2,3.86999999]
[1760820605232,0.04471058,3898.4,3897.9,3.02787564]
[1760820605400,0.04471058,3898.4,3897.9,2.56547564]
[1760820605730,0.04471058,3898.4,3898.0,0.4624]
[1760820606817,0.04471058,3898.4,3897.8,2.56553487]
[1760820607127,0.04471058,3898.4,3897.9,2.56547866]
[1760820607532,0.6336,3898.6,3897.9,3.02447866]
[1760820608936,0.6336,3898.6,3897.9,0.459]
[1760820609133,0.6336,3898.6,3897.7,2.56561561]
[1760820609324,0.6336,3898.6,3897.8,3.02453139]
[1760820610029,0.6336,3898.6,3897.9,2.56547]
[1760820611054,0.04470968,3898.5,3897.9,2.56547]
[1760820611400,0.04470968,3898.5,3897.9,3.02447]
[1760820611604,0.128,3898.0,3897.9,3.02447]
[1760820612206,0.17270963,3898.0,3897.9,3.02447]
[1760820614936,0.17270963,3898.0,3897.9,0.459]
[1760820617139,0.17270963,3898.0,3897.8,2.56553103]
[1760820617446,0.17270963,3898.0,3897.9,3.02448397]
[1760820620239,0.04470963,3898.0,3897.9,3.60934819]
[1760820620537,0.04470963,3898.0,3897.9,3.58369336]
[1760820620744,0.128,3898.3,3898.1,2.56534081]
[1760820621245,0.128,3898.3,3898.1,3.02434081]
[1760820621449,0.128,3898.3,3898.2,2.56528654]
[1760820622236,0.128,3898.3,3898.2,3.02428654]
[1760820622645,0.128,3898.3,3898.2,2.56528654]
[1760820622958,0.128,3898.3,3898.2,3.02428654]
[1760820627061,0.128,3898.3,3898.0,3.02437326]
[1760820627654,0.128,3898.3,3898.1,2.56534528]
[1760820627844,0.128,3898.3,3898.2,2.56528654]
[1760820633677,0.129,3898.3,3898.2,2.56528654]
[1760820635245,0.129,3898.3,3898.1,2.56533335]
[1760820635677,0.228,3898.3,3898.1,2.56533335]
[1760820637170,0.099,3898.2,3897.8,6.43548695]
[1760820637344,0.099,3898.2,3897.9,2.56547334]
[1760820637548,0.129,3898.3,3897.9,2.56547334]
[1760820637754,0.228,3898.3,3898.0,2.56540962]
[1760820639789,0.129,3898.3,3898.0,2.56539435]
[1760820640964,0.129,3898.3,3898.1,2.56533426]
[1760820642395,0.17370849,3898.3,3898.1,2.56533426]
[1760820644706,0.17370849,3898.3,3897.6,0.13]
[1760820644991,0.128,3897.7,3897.6,0.002]
[1760820646700,0.128,3897.7,3897.6,2.99768144]
[1760820646857,0.0447127,3897.8,3897.7,2.56561561]
[1760820647057,0.0447127,3897.8,3897.7,2.99561561]
[1760820647979,0.128,3898.1,3898.0,2.56541816]
[1760820648791,0.128,3898.1,3898.0,2.99541816]
[1760820651565,0.17270938,3898.1,3898.0,2.99541816]
[1760820652582,0.17270938,3898.1,3897.7,3.86999999]
[1760820652583,0.17270938,3898.1,3897.9,2.5654271]
[1760820652998,0.17270938,3898.1,3898.0,2.56541816]
[1760820660822,0.17270938,3898.1,3898.0,2.99541816]
[1760820662334,0.04470938,3898.1,3898.0,4.0665148]
[1760820663151,0.001,3898.2,3898.1,2.56535235]
[1760820664514,0.001,3898.2,3898.1,3.01025235]
[1760820666164,0.001,3898.2,3898.1,2.56535235]
[1760820667361,0.001,3898.2,3898.1,6.43535234]
[1760820670643,0.001,3898.2,3898.1,6.89035234]
[1760820670881,0.001,3898.2,3898.1,8.20988034]
[1760820673208,0.001,3898.2,3898.1,8.43888034]
[1760820673709,0.001,3898.2,3898.1,8.20988034]
[1760820677131,0.001,3898.2,3898.1,3.88488035]
[1760820677286,0.001,3898.2,3898.1,4.36553387]
[1760820677482,0.001,3898.2,3898.1,4.57073838]
[1760820677832,0.001,3898.2,3898.1,2.79621038]
[1760820681505,0.04570611,3898.2,3898.1,2.79621038]
[1760820682020,0.001,3898.2,3898.1,7.12121037]
[1760820686402,0.04570553,3898.2,3898.1,7.12121037]
[1760820687615,0.001,3898.2,3898.1,7.12121037]
[1760820690825,0.04570572,3898.2,3898.1,7.12121037]
[1760820691324,0.001,3898.2,3898.1,7.12121037]
[1760820692611,0.001,3898.2,3898.1,7.79292521]
[1760820693521,0.001,3898.2,3898.1,7.12121037]
[1760820694710,0.001,3898.2,3898.1,6.66621037]
[1760820698551,0.1019,3898.2,3897.6,0.002]
[1760820698737,0.1868,3897.7,3897.6,0.002]
[1760820699053,0.1868,3897.7,3897.6,2.56768144]
[1760820699351,0.2886,3897.7,3897.6,2.56768144]
[1760820699539,0.2886,3897.7,3897.6,0.002]
[1760820700154,0.1018,3898.0,3897.6,2.56768144]
[1760820700354,0.1026,3897.9,3897.6,2.56768144]
[1760820700849,0.1026,3897.8,3897.6,2.56768144]
[1760820701219,0.1034,3898.0,3897.7,2.56561561]
[1760820701419,0.0447103,3897.8,3897.7,2.56561561]
[1760820707550,0.1034,3897.9,3897.8,2.56554979]
[1760820709126,0.128,3898.0,3897.8,2.56554979]
[1760820709527,0.2314,3898.0,3897.6,2.56761602]
[1760820710266,0.2314,3898.0,3897.7,2.56559977]
[1760820711627,0.2314,3898.0,3897.6,0.002]
[1760820711852,0.128,3898.0,3897.6,0.002]
[1760820712158,0.1034,3897.9,3897.6,2.5676714]
[1760820712457,0.1034,3897.9,3897.6,0.002]
[1760820712678,0.128,3898.0,3897.6,0.002]
[1760820712868,0.2886,3897.9,3897.6,0.002]
[1760820713777,0.099,3897.8,3897.6,0.002]
[1760820715378,0.1896,3897.9,3897.6,0.002]
[1760820715672,0.7326,3897.7,3897.6,0.002]
[1760820715879,5.02621561,3897.7,3897.6,0.002]
[1760820716077,5.07093114,3897.7,3897.6,0.002]
[1760820716450,5.02621561,3897.7,3897.6,0.002]
[1760820718964,2.4606,3897.7,3897.6,0.002]
[1760820720177,2.3616,3897.7,3897.6,0.002]
[1760820720382,2.4063161,3897.7,3897.6,0.002]
[1760820720583,2.3616,3897.7,3897.6,0.002]
[1760820722080,2.4606,3897.7,3897.6,0.002]
[1760820724396,2.40631583,3897.7,3897.6,0.002]
[1760820726392,2.50531583,3897.7,3897.6,0.002]
[1760820727493,2.40631583,3897.7,3897.6,0.002]
[1760820727670,2.3616,3897.7,3897.6,0.002]
[1760820732194,2.40631577,3897.7,3897.6,0.002]
[1760820732383,2.3616,3897.7,3897.6,0.002]
[1760820734470,5.02621561,3897.7,3897.6,0.002]
[1760820734696,0.0407158,3897.1,3896.4,2.56641675]
[1760820734901,0.128,3896.8,3896.4,2.56641675]
[1760820735102,0.128,3896.8,3896.4,3.03821675]
[1760820735306,0.128,3896.8,3896.4,0.4718]
[1760820735495,0.128,3896.8,3896.4,3.03825468]
[1760820735710,0.128,3896.8,3896.4,0.4718]
[1760820736080,0.128,3896.8,3896.4,3.03823882]
[1760820736717,0.128,3896.8,3896.5,0.4718]
[1760820736913,0.128,3896.8,3896.5,3.03820111]
[1760820737122,0.128,3896.8,3896.6,0.4718]
[1760820737296,0.128,3896.8,3896.6,3.03811926]
[1760820737500,0.128,3896.8,3896.7,0.4718]
[1760820740412,0.128,3896.8,3896.6,2.56633383]
[1760820740705,0.128,3896.8,3896.6,3.03813383]
[1760820740872,0.128,3896.8,3896.6,3.04013383]
[1760820741071,0.128,3896.8,3896.6,0.4738]
[1760820742408,0.128,3896.8,3896.6,3.04012306]
[1760820743779,0.128,3896.8,3896.6,0.4738]
[1760820743980,0.128,3896.8,3896.6,3.04013764]
[1760820744526,2.3626,3897.7,3896.3,0.002]
[1760820744527,0.04271903,3896.6,3896.3,0.002]
[1760820745121,3.6875274,3896.5,3896.3,0.002]
[1760820745290,0.6336,3896.4,3896.3,0.002]
[1760820745691,3.29907161,3896.4,3896.3,0.002]
[1760820747584,5.02707161,3896.4,3896.3,0.002]
[1760820747784,5.41557318,3896.4,3896.3,0.002]
[1760820748007,5.81817314,3896.4,3896.3,0.002]
[1760820748414,5.71917314,3896.4,3896.3,0.002]
[1760820748619,5.42967157,3896.4,3896.3,0.002]
[1760820751712,5.33067157,3896.4,3896.3,0.002]
[1760820752406,5.42967157,3896.4,3896.3,0.002]
[1760820754722,6.22201362,3896.4,3896.3,0.002]
[1760820755293,6.67371362,3896.4,3896.3,0.002]
[1760820755637,6.27111366,3896.4,3896.3,0.002]
[1760820758892,6.673718,3896.4,3896.3,0.002]
[1760820759295,6.574718,3896.4,3896.3,0.002]
[1760820760111,5.78237595,3896.4,3896.3,0.002]
[1760820764097,5.33067595,3896.4,3896.3,0.002]
[1760820764628,4.92807161,3896.4,3896.3,0.002]
[1760820766130,2.3616,3896.4,3896.3,0.4537]
[1760820767100,1.728,3896.4,3896.3,0.4537]
[1760820769798,0.40257648,3896.5,3896.3,0.4537]
[1760820769998,0.40257648,3896.5,3896.4,0.4517]
[1760820770325,0.128,3896.5,3896.4,0.4517]
[1760820772201,0.128,3896.5,3896.3,0.002]
[1760820773929,0.128,3896.5,3896.4,0.4517]
[1760820777211,0.128,3896.5,3896.4,0.82089988]
[1760820777934,0.128,3896.5,3896.4,3.38737149]
[1760820778733,0.128,3896.5,3896.4,0.82089988]
[1760820778937,0.128,3896.5,3896.4,0.4517]
[1760820779104,0.128,3896.5,3896.3,0.002]
[1760820779530,0.128,3896.5,3896.4,0.4517]
[1760820780237,0.128,3896.5,3896.4,0.4109842]
[1760820780824,0.17272632,3896.5,3896.4,0.4109842]
[1760820781010,0.17272632,3896.5,3896.3,0.002]
[1760820782217,0.17272632,3896.5,3896.4,0.4517]
[1760820783202,0.04472632,3896.5,3896.4,3.44506004]
[1760820783403,0.04472632,3896.5,3896.4,4.21688632]
[1760820784844,0.04472632,3896.5,3896.4,3.44506004]
[1760820787744,0.04472632,3896.5,3896.4,3.41939533]
[1760820787944,0.04472632,3896.5,3896.4,3.44506004]
[1760820788248,0.04472632,3896.5,3896.4,3.54796729]
[1760820788421,0.001,3896.6,3896.5,2.56640574]
[1760820788620,0.001,3896.6,3896.5,7.47794303]
[1760820789634,0.001,3896.6,3896.5,4.91153729]
[1760820789946,0.001,3896.6,3896.5,7.47794303]
[1760820790536,0.001,3896.6,3896.5,4.91153729]
[1760820791120,0.001,3896.6,3896.5,4.86881826]
[1760820793139,0.001,3896.6,3896.5,4.43891826]
[1760820793535,0.001,3896.6,3896.5,4.86881826]
[1760820793739,0.001,3896.6,3896.5,7.435224]
[1760820794444,0.6336,3896.5,3896.3,0.002]
[1760820794644,0.7767,3896.4,3896.3,0.002]
[1760820795060,0.04472944,3896.4,3896.3,0.002]
[1760820795640,0.18782944,3896.4,3896.3,0.002]
[1760820797576,0.1431,3896.4,3896.3,0.002]
[1760820799178,0.001,3896.5,3896.3,0.002]
[1760820799564,0.1441,3896.5,3896.3,0.002]
[1760820800161,2.71051821,3896.5,3896.3,0.002]
[1760820800363,2.70957161,3896.4,3896.3,0.002]
[1760820802279,2.75430107,3896.4,3896.3,0.002]
[1760820807799,0.18782946,3896.4,3896.3,0.002]
[1760820810394,2.75430107,3896.4,3896.3,0.002]
[1760820812608,3.38790107,3896.4,3896.3,0.002]
[1760820812809,5.50440264,3896.4,3896.3,0.002]
[1760820813013,7.68334664,3896.4,3896.3,0.002]
[1760820813492,5.50440264,3896.4,3896.3,0.002]
[1760820814012,8.18382918,3896.4,3896.3,0.002]
[1760820814215,5.45967318,3896.4,3896.3,0.002]
[1760820814804,2.75010157,3896.4,3896.3,0.002]
[1760820815003,4.92807161,3896.4,3896.3,0.002]
[1760820816495,4.97280274,3896.4,3896.3,0.002]
[1760820817106,2.40633113,3896.4,3896.3,0.002]
[1760820817287,1.77273113,3896.4,3896.3,0.4633]
[1760820817480,0.04473113,3896.4,3896.3,0.4633]
[1760820818102,0.001,3896.5,3896.3,0.4633]
[1760820818312,0.001,3896.5,3896.4,0.4613]
[1760820821320,0.04573193,3896.5,3896.4,0.4613]
[1760820822705,0.04573193,3896.5,3896.4,0.78622309]
[1760820826826,0.04573193,3896.5,3896.4,3.37835941]
[1760820827406,0.001,3896.5,3896.4,3.37835941]
[1760820828002,0.001,3896.5,3896.4,3.3526947]
[1760820828434,0.001,3896.5,3896.4,3.6096947]
[1760820828937,0.001,3896.5,3896.4,3.63535941]
[1760820829143,0.001,3896.5,3896.4,3.50735941]
[1760820829655,0.001,3896.5,3896.4,3.4816947]
[1760820836038,0.001,3896.5,3896.4,3.50735941]
[1760820836243,0.001,3896.5,3896.4,3.4816947]
[1760820837042,0.001,3896.5,3896.4,3.50735941]
[1760820838550,0.001,3896.5,3896.4,5.23535941]
[1760820838754,0.001,3896.5,3896.4,5.2096947]
[1760820838924,0.001,3896.5,3896.4,9.20769469]
[1760820840555,0.001,3896.5,3896.4,13.91131402]
[1760820840728,0.001,3896.5,3896.4,16.50431402]
[1760820846480,0.001,3896.5,3896.4,19.20931402]
[1760820846783,0.001,3896.5,3896.4,16.50431402]
[1760820848659,0.001,3896.5,3896.4,9.61139469]
[1760820848858,0.001,3896.5,3896.4,10.08259469]
[1760820850276,0.001,3896.5,3896.4,7.48959469]
[1760820850481,0.001,3896.5,3896.4,10.08259469]
[1760820852866,0.001,3896.5,3896.4,10.08459469]
[1760820853183,0.001,3896.5,3896.4,11.81259469]
[1760820856489,0.001,3896.5,3896.4,14.51759469]
[1760820856690,0.001,3896.5,3896.4,11.81259469]
[1760820857066,0.001,3896.5,3896.4,7.9425947]
[1760820857674,0.001,3896.5,3896.4,7.4713947]
[1760820861394,0.001,3896.5,3896.4,7.9425947]
[1760820863485,0.001,3896.5,3896.4,7.4713947]
[1760820864496,0.001,3896.5,3896.4,7.9425947]
[1760820866612,0.001,3896.5,3896.4,10.6475947]
[1760820866816,0.001,3896.5,3896.4,7.9425947]
[1760820869714,0.001,3896.5,3896.4,7.4713947]
[1760820871425,0.001,3896.5,3896.4,11.34139469]
[1760820872824,0.001,3896.5,3896.4,11.81259469]
[1760820875808,0.001,3896.5,3896.4,11.34139469]
[1760820878004,0.001,3896.5,3896.4,11.78209469]
[1760820878633,0.001,3896.5,3896.4,11.34139469]
[1760820884237,0.001,3896.5,3896.4,11.78209469]
[1760820886953,0.001,3896.5,3896.4,14.48709469]
[1760820887124,0.001,3896.5,3896.4,11.78209469]
[1760820888454,0.001,3896.5,3896.4,11.34139469]
[1760820896038,0.001,3896.5,3896.4,11.78209469]
[1760820900675,0.001,3896.5,3896.4,11.34139469]
[1760820903641,0.1066,3896.5,3896.4,11.34139469]
[1760820904270,0.001,3896.5,3896.4,11.34139469]
[1760820913288,0.1066,3896.5,3896.4,11.34139469]
[1760820914215,0.001,3896.5,3896.4,11.34139469]
[1760820925837,0.1066,3896.5,3896.4,11.34139469]
[1760820926040,0.001,3896.5,3896.4,11.34139469]
[1760820928319,0.001,3896.5,3896.4,8.74839469]
[1760820928519,0.001,3896.5,3896.4,11.33839469]
[1760820929668,0.001,3896.5,3896.4,11.77589469]
[1760820935151,0.001,3896.5,3896.4,11.33839469]
[1760820943270,0.109,3896.5,3896.4,8.74839469]
[1760820943567,0.109,3896.5,3896.4,6.6954716]
[1760820943772,0.109,3896.5,3896.4,0.259]
[1760820944067,0.15372389,3896.5,3896.4,0.259]
[1760820944366,0.15372389,3896.5,3896.4,0.002]
[1760820944367,0.109,3896.5,3896.4,0.002]
[1760820944670,0.109,3896.5,3896.4,0.2171]
[1760820946292,0.109,3896.5,3896.4,0.002]
[1760820950507,0.001,3896.5,3896.4,0.002]
[1760820950820,0.001,3896.5,3896.4,2.56847161]
[1760820953311,0.001,3896.5,3896.4,2.99707161]
[1760820953912,0.001,3896.5,3896.4,2.59413632]
[1760820954226,0.001,3896.5,3896.4,3.58341916]
[1760820954531,0.001,3896.5,3896.4,3.71141916]
[1760820955084,0.001,3896.5,3896.4,3.81431582]
[1760820955527,0.001,3896.5,3896.4,3.78865111]
[1760820955828,0.001,3896.5,3896.4,3.81431582]
[1760820957426,0.001,3896.5,3896.4,7.68431581]
[1760820957609,0.001,3896.5,3896.4,7.6586511]
[1760820960222,0.001,3896.5,3896.4,7.2300511]
[1760820960408,0.001,3896.5,3896.4,6.66936826]
[1760820964826,0.001,3896.5,3896.4,7.13306826]
[1760820965632,0.001,3896.5,3896.4,6.66936826]
[1760820968560,0.1101,3896.5,3896.4,6.66936826]
[1760820969924,0.001,3896.5,3896.4,6.66936826]
[1760820970137,0.1101,3896.5,3896.4,6.66936826]
[1760820970544,0.1101,3896.5,3896.4,6.5664716]
[1760820972748,0.1101,3896.5,3896.4,3.99999999]
[1760820972950,0.1101,3896.5,3896.4,6.5664716]
[1760820973859,0.001,3896.5,3896.4,11.27009093]
[1760820974166,0.001,3896.5,3896.4,13.93213838]
[1760820974371,0.001,3896.5,3896.4,14.56573838]
[1760820974521,0.001,3896.6,3896.5,11.04259574]
[1760820974721,0.001,3896.6,3896.5,13.9763381]
[1760820976677,1e-08,3897.3,3896.8,7.63280817]
[1760820976954,1e-08,3897.3,3897.2,12.55766411]
[1760820977160,1e-08,3897.3,3897.2,15.14566411]
[1760820977317,1e-08,3897.3,3897.2,17.38623817]
[1760820977719,1e-08,3897.3,3897.2,14.68123817]
[1760820978924,1e-08,3897.3,3897.2,14.78408139]
[1760820979221,0.001,3898.5,3898.2,3.19888654]
[1760820979467,0.001,3898.5,3898.2,12.53839452]
[1760820979679,1e-08,3898.6,3898.5,4.92668913]
[1760820979972,1e-08,3898.6,3898.5,7.51468913]
[1760820980175,1e-08,3898.6,3898.5,7.98408913]
[1760820980489,0.40219326,3900.7,3900.0,4.92570256]
[1760820980665,0.40219326,3900.7,3900.0,9.01511808]
[1760820980866,0.40219326,3900.7,3900.0,9.45887706]
[1760820981177,0.3143,3901.1,3900.0,9.86107032]
[1760820981707,0.3143,3901.3,3900.0,9.86107032]
[1760820982051,0.3143,3901.3,3900.0,15.63577632]
[1760820982252,0.3143,3901.3,3900.0,15.38407632]
[1760820983184,0.3143,3901.3,3900.0,14.49878032]
[1760820983455,0.3143,3901.1,3900.0,12.80745332]
[1760820983882,0.099,3900.7,3900.0,6.80367032]
[1760820984092,0.099,3900.7,3900.0,9.51867032]
[1760820984597,0.099,3900.7,3900.0,7.40107032]
[1760820984891,0.099,3900.7,3900.0,9.98807032]
[1760820985956,0.099,3900.7,3900.0,6.93167032]
[1760820986158,0.2155,3900.8,3900.0,9.51867032]
[1760820986492,0.2155,3900.8,3900.0,9.98807032]
[1760820987852,0.099,3900.6,3900.0,9.51867032]
[1760820988056,0.2155,3900.8,3900.0,9.51867032]
[1760820988256,0.099,3900.3,3900.0,9.51867032]
[1760820989464,0.1,3900.1,3900.0,4.57007032]
[1760820989669,0.1,3900.1,3900.0,3.09429582]
[1760820989871,0.1,3900.1,3900.0,4.82229582]
[1760820992598,0.1,3900.1,3900.0,3.09429582]
[1760820997415,0.1,3900.1,3900.0,0.40219326]
[1760820997705,0.1446861,3900.1,3899.2,0.2155]
[1760820997891,0.2108,3899.3,3899.2,0.2155]
[1760820998090,0.3098,3899.3,3898.1,0.002]
[1760820998293,0.3098,3899.3,3898.3,0.77131628]
[1760820998504,0.0999,3899.2,3898.1,0.002]
[1760820998701,0.0999,3899.2,3898.1,0.47686271]
[1760820999013,0.0999,3899.1,3898.6,2.56500695]
[1760820999204,0.1009,3899.0,3898.6,2.56500695]
[1760820999515,0.1009,3898.9,3898.6,2.56500695]
[1760820999808,0.2108,3899.3,3898.6,2.56500695]
[1760820999809,0.1009,3898.8,3898.6,2.56500695]
[1760821000009,0.2108,3899.3,3898.7,2.56495754]
[1760821000198,0.2108,3899.3,3898.6,2.56500564]
[1760821000575,0.1009,3899.2,3898.6,2.56500564]
[1760821000776,0.1009,3899.1,3898.6,2.56500564]
[1760821001024,0.1009,3899.0,3898.7,2.56495584]
[1760821001312,0.1009,3898.9,3898.7,2.56495584]
[1760821001482,0.1009,3898.8,3898.7,2.56495584]
[1760821005842,0.1009,3899.0,3898.7,2.56495584]
[1760821006017,0.04469926,3899.1,3898.7,2.56495584]
[1760821006204,0.1009,3898.9,3898.7,2.56495584]
[1760821007005,0.04469926,3899.1,3898.8,0.02564891]
[1760821007206,0.04469926,3899.1,3899.0,2.56476019]
[1760821007428,0.04469926,3899.1,3899.0,7.01386018]
[1760821007734,0.102,3899.6,3899.0,3.99799999]
[1760821007937,0.102,3899.6,3899.1,2.56463084]
[1760821008133,0.102,3899.6,3899.3,0.128]
[1760821008316,0.102,3899.5,3899.3,0.128]
[1760821008519,0.102,3899.4,3899.3,0.128]
[1760821009012,0.23,3900.0,3899.3,0.128]
[1760821009218,0.128,3900.0,3899.4,2.5644971]
[1760821009413,0.23,3900.0,3899.4,2.5644971]
[1760821009617,0.128,3900.0,3899.5,2.56442953]
[1760821009815,0.128,3900.0,3899.3,0.128]
[1760821010020,0.001,3900.1,3899.5,0.128]
[1760821010227,0.102,3900.0,3899.5,2.69238707]
[1760821010428,0.102,3899.9,3899.5,0.128]
[1760821010615,0.102,3899.8,3899.5,0.128]
[1760821010829,0.04469318,3899.9,3899.5,0.128]
[1760821011034,0.102,3899.7,3899.5,0.128]
[1760821011230,0.102,3899.6,3899.5,0.128]
[1760821011406,0.102,3899.6,3898.9,3.86999999]
[1760821011748,0.102,3899.5,3899.1,0.128]
[1760821011908,0.102,3899.4,3899.1,0.128]
[1760821012642,0.102,3899.4,3899.1,2.69268595]
[1760821012845,0.102,3899.3,3899.1,0.128]
[1760821014424,0.04469526,3899.5,3899.1,0.128]
[1760821014662,0.04469526,3899.5,3898.9,3.86999999]
[1760821014663,0.102,3899.2,3898.9,3.86999999]
[1760821014827,4.70361933,3899.3,3898.6,0.002]
[1760821014828,0.102,3899.1,3898.6,0.002]